fUST/lending_fUST_20250701
["ID","MTS","AMOUNT","RATE_DAILY","PERIOD"]
[368756762,1751349055622,-2448.82,0.00019422,2]
[368756763,1751349055631,-460.0,0.00019422,2]
[368756764,1751349055642,-460.0,0.00019422,2]
[368756765,1751349055651,-460.0,0.00019422,2]
[368756766,1751349055661,-702.81,0.00019422,2]
[368756767,1751349055671,-151.0,0.00019422,2]
[368756768,1751349055680,-587.42,0.00019422,2]
[368756769,1751349055690,-460.0,0.00019422,2]
[368756770,1751349055700,-151.0,0.00019422,2]
[368756771,1751349055709,-151.0,0.00019422,2]
[368756772,1751349055719,-269.495333,0.00019422,2]
[368756773,1751349055729,-269.495333,0.00019422,2]
[368756774,1751349055739,-1025.21,0.00019422,2]
[368756775,1751349055748,-151.0,0.00019423,2]
[368756776,1751349055758,-151.0,0.00019423,2]
[368756777,1751349055768,-151.0,0.00019423,2]
[368756778,1751349055778,-151.0,0.00019423,2]
[368756779,1751349055787,-840.85,0.00019423,2]
[368756780,1751349055797,-460.0,0.00019424,2]
[368756781,1751349055807,-460.0,0.00019424,2]
[368756782,1751349055816,-429.50488374,0.00019424,2]
[368756783,1751349055826,-460.0,0.00019424,2]
[368756784,1751349055835,-1115.32,0.00019424,2]
[368756785,1751349055845,-460.0,0.00019424,2]
[368756786,1751349055854,-1061.67,0.00019424,2]
[368756787,1751349055864,-460.0,0.00019424,2]
[368756788,1751349055875,-2008.26,0.00019424,2]
[368756789,1751349055884,-500.0,0.00019424,2]
[368756790,1751349055894,-532.54,0.00019425,2]
[368756791,1751349055903,-500.0,0.00019452,2]
[368756792,1751349055913,-848.97711289,0.00019468,2]
[368756793,1751349055922,-579.0,0.00019479,2]
[368756794,1751349055932,-605.67632189,0.00019595,2]
[368756795,1751349055942,-500.0,0.0001968,2]
[368756796,1751349055952,-207.4,0.0001968,2]
[368756797,1751349055961,-690.642,0.0001968,2]
[368756798,1751349055971,-500.0,0.0001968,2]
[368756799,1751349055982,-500.0,0.0001968,2]
[368756800,1751349055991,-500.0,0.0001968,2]
[368756801,1751349056001,-500.0,0.0001968,2]
[368756802,1751349056014,-500.0,0.0001968,2]
[368756803,1751349056023,-500.0,0.0001968,2]
[368756804,1751349056033,-151.0,0.0001968,2]
[368756805,1751349056042,-500.0,0.0001968,2]
[368756806,1751349056054,-500.0,0.0001968,2]
[368756807,1751349056063,-151.0,0.0001968,2]
[368756808,1751349056073,-500.0,0.0001968,2]
[368756809,1751349056084,-500.0,0.0001968,2]
[368756810,1751349056093,-500.0,0.0001968,2]
[368756811,1751349056103,-500.0,0.0001968,2]
[368756812,1751349056113,-500.0,0.0001968,2]
[368756813,1751349056122,-500.0,0.0001968,2]
[368756814,1751349056132,-500.0,0.0001968,2]
[368756815,1751349056141,-500.0,0.0001968,2]
[368756816,1751349056151,-500.0,0.0001968,2]
[368756817,1751349056161,-500.0,0.0001968,2]
[368756818,1751349056170,-500.0,0.0001968,2]
[368756819,1751349056180,-412.73367849,0.0001968,2]
[368756820,1751349056190,-500.0,0.0001968,2]
[368756821,1751349056199,-500.0,0.0001968,2]
[368756822,1751349056209,-500.0,0.0001968,2]
[368756823,1751349056218,-500.0,0.0001968,2]
[368756824,1751349056228,-500.0,0.0001968,2]
[368756825,1751349056238,-500.0,0.0001968,2]
[368756826,1751349056248,-500.0,0.0001968,2]
[368756827,1751349056258,-500.0,0.0001968,2]
[368756828,1751349056267,-500.0,0.0001968,2]
[368756829,1751349056277,-500.0,0.0001968,2]
[368756830,1751349056286,-500.0,0.0001968,2]
[368756831,1751349056296,-500.0,0.0001968,2]
[368756832,1751349056306,-500.0,0.0001968,2]
[368756833,1751349056315,-420.0,0.00019691,2]
[368756834,1751349056325,-527.97,0.00019693,2]
[368756835,1751349056334,-460.0,0.00019693,2]
[368756836,1751349056344,-460.0,0.00019693,2]
[368756837,1751349056437,-1110.87,0.00019693,2]
[368756838,1751349056448,-460.0,0.00019694,2]
[368756839,1751349056458,-460.0,0.00019694,2]
[368756840,1751349056467,-716.4,0.00019694,2]
[368756841,1751349056478,-1541.28,0.00019694,2]
[368756842,1751349056487,-460.0,0.00019694,2]
[368756843,1751349056496,-460.0,0.00019694,2]
[368756844,1751349056506,-1394.72,0.00019694,2]
[368756845,1751349056516,-1865.57,0.00019694,2]
[368756846,1751349056526,-460.0,0.00019694,2]
[368756847,1751349056536,-460.0,0.00019694,2]
[368756848,1751349056545,-692.65,0.00019694,2]
[368756849,1751349056554,-460.0,0.00019694,2]
[368756850,1751349056564,-460.0,0.00019695,2]
[368756851,1751349056574,-460.0,0.00019695,2]
[368756852,1751349056584,-460.0,0.00019695,2]
[368756853,1751349056593,-460.0,0.00019695,2]
[368756854,1751349056603,-1719.47,0.00019695,2]
[368756855,1751349056613,-460.0,0.00019695,2]
[368756856,1751349056623,-460.0,0.00019695,2]
[368756857,1751349056635,-460.0,0.00019695,2]
[368756858,1751349056644,-460.0,0.00019695,2]
[368756859,1751349056654,-460.0,0.00019695,2]
[368756860,1751349056664,-943.57,0.00019695,2]
[368756861,1751349056674,-460.0,0.00019695,2]
[368756862,1751349056683,-501.45,0.00019695,2]
[368756863,1751349056693,-566.11,0.00019695,2]
[368756864,1751349056702,-460.0,0.00019695,2]
[368756865,1751349056711,-1143.86,0.00019695,2]
[368756866,1751349056721,-460.0,0.00019695,2]
[368756867,1751349056730,-589.88,0.00019695,2]
[368756868,1751349056740,-183.04,0.00019695,2]
[368756869,1751349056749,-527.84,0.00019695,2]
[368756870,1751349056759,-452.5,0.00019695,2]
[368756871,1751349056768,-460.0,0.00019695,2]
[368756872,1751349056778,-597.27,0.00019695,2]
[368756873,1751349056788,-460.0,0.00019695,2]
[368756874,1751349056797,-460.0,0.00019695,2]
[368756875,1751349056806,-460.0,0.00019695,2]
[368756876,1751349056816,-460.0,0.00019695,2]
[368756877,1751349056825,-460.0,0.00019695,2]
[368756878,1751349056834,-2322.87,0.00019696,2]
[368756879,1751349056844,-243.72,0.00019696,2]
[368756880,1751349056854,-535.0,0.00019696,2]
[368756881,1751349056863,-460.0,0.00019696,2]
[368756882,1751349056873,-456.23,0.00019696,2]
[368756883,1751349056882,-460.0,0.00019696,2]
[368756884,1751349056892,-460.0,0.00019696,2]
[368756885,1751349056901,-418.09,0.00019696,2]
[368756886,1751349056911,-221.82,0.00019696,2]
[368756887,1751349056920,-460.0,0.00019696,2]
[368756888,1751349056930,-471.24,0.00019696,2]
[368756889,1751349056939,-499.84,0.00019696,2]
[368756890,1751349056948,-162.53559787,0.00019696,2]
[368756891,1751349056958,-2448.82,0.00019696,2]
[368756892,1751349056967,-460.0,0.00019696,2]
[368756893,1751349056977,-460.0,0.00019696,2]
[368756894,1751349056987,-460.0,0.00019696,2]
[368756895,1751349056996,-702.81,0.00019696,2]
[368756896,1751349057008,-460.0,0.00019696,2]
[368756897,1751349057018,-1025.21,0.00019696,2]
[368756898,1751349057028,-840.85,0.00019697,2]
[368756899,1751349057038,-460.0,0.00019698,2]
[368756900,1751349057047,-1115.32,0.00019698,2]
[368756901,1751349057057,-460.0,0.00019698,2]
[368756902,1751349057068,-1061.67,0.00019698,2]
[368756903,1751349057077,-2008.26,0.00019698,2]
[368756904,1751349057089,-716.195754,0.00019735,2]
[368756905,1751349057100,-826.0,0.00019774,2]
[368756906,1751349057109,-742.6949969,0.0001979,2]
[368756907,1751349057121,-1500.0,0.00019815,2]
[368756908,1751349057131,-198.53017949,0.00019845,2]
[368756909,1751349057140,-168.0,0.00019911,2]
[368756910,1751349057150,-364.40809835,0.00019924,2]
[368756911,1751349057159,-460.0,0.00019967,2]
[368756912,1751349057168,-175.04,0.00019967,2]
[368756913,1751349057178,-1110.87,0.00019967,2]
[368756914,1751349057188,-460.0,0.00019968,2]
[368756915,1751349057197,-585.47955425,0.00019968,2]
[368756916,1751349057207,-716.4,0.00019968,2]
[368756917,1751349057217,-1541.28,0.00019968,2]
[368756918,1751349057227,-460.0,0.00019968,2]
[368756919,1751349057237,-460.0,0.00019968,2]
[368756920,1751349057247,-1394.72,0.00019968,2]
[368756921,1751349057257,-1865.57,0.00019968,2]
[368756922,1751349057267,-460.0,0.00019968,2]
[368756923,1751349057276,-460.0,0.00019968,2]
[368756924,1751349057286,-692.65,0.00019968,2]
[368756925,1751349057295,-237.21188059,0.00019968,2]
[368756926,1751349057305,-526.97311888,0.00019969,2]
[368756927,1751349057315,-460.0,0.00019969,2]
[368756928,1751349057324,-460.0,0.00019969,2]
[368756929,1751349057333,-460.0,0.00019969,2]
[368756930,1751349057343,-1719.47,0.00019969,2]
[368756931,1751349057352,-460.0,0.00019969,2]
[368756932,1751349057362,-460.0,0.00019969,2]
[368756933,1751349057371,-460.0,0.00019969,2]
[368756934,1751349057383,-460.0,0.00019969,2]
[368756935,1751349057393,-460.0,0.00019969,2]
[368756936,1751349057403,-943.57,0.00019969,2]
[368756937,1751349057415,-460.0,0.00019969,2]
[368756938,1751349057425,-501.45,0.00019969,2]
[368756939,1751349057434,-566.11,0.00019969,2]
[368756940,1751349057445,-460.0,0.00019969,2]
[368756941,1751349057456,-1143.86,0.00019969,2]
[368756942,1751349057465,-436.06,0.00019969,2]
[368756943,1751349057474,-527.84,0.00019969,2]
[368756944,1751349057484,-460.0,0.00019969,2]
[368756945,1751349057494,-597.27,0.00019969,2]
[368756946,1751349057504,-460.0,0.00019969,2]
[368756947,1751349057513,-460.0,0.00019969,2]
[368756948,1751349057522,-460.0,0.00019969,2]
[368756949,1751349057532,-460.0,0.00019969,2]
[368756950,1751349057543,-460.0,0.00019969,2]
[368756951,1751349057553,-2322.87,0.0001997,2]
[368756952,1751349057564,-460.0,0.0001997,2]
[368756953,1751349057576,-462.07,0.0001997,2]
[368756954,1751349057587,-460.0,0.0001997,2]
[368756955,1751349057597,-407.64,0.0001997,2]
[368756956,1751349057607,-2448.82,0.0001997,2]
[368756957,1751349057617,-460.0,0.0001997,2]
[368756958,1751349057627,-460.0,0.0001997,2]
[368756959,1751349057638,-460.0,0.0001997,2]
[368756960,1751349057649,-702.81,0.0001997,2]
[368756961,1751349057659,-460.0,0.0001997,2]
[368756962,1751349057669,-151.0,0.0001997,2]
[368756963,1751349057678,-1025.21,0.0001997,2]
[368756964,1751349057687,-840.85,0.00019971,2]
[368756965,1751349057697,-460.0,0.00019972,2]
[368756966,1751349057707,-1115.32,0.00019972,2]
[368756967,1751349057717,-357.78,0.00019972,2]
[368756968,1751349057727,-1061.67,0.00019972,2]
[368756969,1751349057737,-2008.26,0.00019972,2]
[368756970,1751349057747,-169.28,0.0002,2]
[368756971,1751349057758,-4000.0,0.0002,4]
[368756972,1751349057767,-826.0,0.00020002,2]
[368756973,1751349057777,-11175.271891,0.00020008,2]
[368756974,1751349057787,-498.34233224,0.00020008,2]
[368756975,1751349057877,-520.54352268,0.00020085,2]
[368756976,1751349057888,-500.0,0.00020085,2]
[368756977,1751349057898,-500.0,0.00020085,2]
[368756978,1751349057908,-502.2109118,0.00020085,2]
[368756979,1751349057918,-501.86604792,0.00020085,2]
[368756980,1751349057927,-500.0,0.00020085,2]
[368756981,1751349057937,-500.0,0.00020085,2]
[368756982,1751349057947,-500.0,0.00020085,2]
[368756983,1751349057956,-500.32963069,0.00020085,2]
[368756984,1751349057966,-500.0,0.00020085,2]
[368756985,1751349057975,-500.0,0.00020085,2]
[368756986,1751349057985,-500.0,0.00020085,2]
[368756987,1751349057995,-500.0,0.00020085,2]
[368756988,1751349058006,-500.0,0.00020085,2]
[368756989,1751349058018,-502.07193439,0.00020085,2]
[368756990,1751349058029,-500.0,0.00020085,2]
[368756991,1751349058038,-502.18668923,0.00020085,2]
[368756992,1751349058048,-502.03785506,0.00020085,2]
[368756993,1751349058059,-600.0,0.00020085,2]
[368756994,1751349058068,-500.0,0.00020085,2]
[368756995,1751349058079,-500.0,0.00020085,2]
[368756996,1751349058090,-500.0,0.00020085,2]
[368756997,1751349058099,-184.87792801,0.00020085,2]
[368756998,1751349058109,-499.09803997,0.00020085,2]
[368756999,1751349058119,-500.0,0.00020085,2]
[368757000,1751349058129,-508.15711835,0.00020085,2]
[368757001,1751349058139,-501.3516219,0.00020085,2]
[368757002,1751349058148,-415.0,0.00020116,2]
[368757003,1751349058158,-415.0,0.0002016,2]
[368757004,1751349058167,-260.866407,0.00020187,2]
[368757005,1751349058179,-2748.06342288,0.0002021,2]
[368757006,1751349058188,-460.0,0.00020241,2]
[368757007,1751349058198,-1110.87,0.00020241,2]
[368757008,1751349058207,-716.4,0.00020242,2]
[368757009,1751349058216,-1541.28,0.00020242,2]
[368757010,1751349058226,-460.0,0.00020242,2]
[368757011,1751349058235,-460.0,0.00020242,2]
[368757012,1751349058245,-1394.72,0.00020242,2]
[368757013,1751349058255,-1865.57,0.00020242,2]
[368757014,1751349058264,-167.20595016,0.00020242,2]
[368757015,1751349058274,-460.0,0.00020242,2]
[368757016,1751349058284,-692.65,0.00020242,2]
[368757017,1751349058294,-396.31728455,0.00020243,2]
[368757018,1751349058303,-460.0,0.00020243,2]
[368757019,1751349058313,-152.760688,0.00020243,2]
[368757020,1751349058323,-460.0,0.00020243,2]
[368757021,1751349058332,-151.0,0.00020243,2]
[368757022,1751349058343,-460.0,0.00020243,2]
[368757023,1751349058353,-1719.47,0.00020243,2]
[368757024,1751349058364,-744.410033,0.00020243,2]
[368757025,1751349058375,-487.6,0.00020243,2]
[368757026,1751349058384,-744.410033,0.00020243,2]
[368757027,1751349058394,-151.0,0.00020243,2]
[368757028,1751349058404,-151.0,0.00020243,2]
[368757029,1751349058414,-174.90838,0.00020243,2]
[368757030,1751349058424,-346.73,0.00020243,2]
[368757031,1751349058435,-460.0,0.00020243,2]
[368757032,1751349058445,-174.90838,0.00020243,2]
[368757033,1751349058454,-943.57,0.00020243,2]
[368757034,1751349058464,-460.0,0.00020243,2]
[368757035,1751349058475,-501.45,0.00020243,2]
[368757036,1751349058486,-566.11,0.00020243,2]
[368757037,1751349058497,-460.0,0.00020243,2]
[368757038,1751349058507,-1143.86,0.00020243,2]
[368757039,1751349058518,-527.84,0.00020243,2]
[368757040,1751349058530,-460.0,0.00020243,2]
[368757041,1751349058539,-597.27,0.00020243,2]
[368757042,1751349058549,-349.42056851,0.00020243,2]
[368757043,1751349058559,-199.2,0.00020243,2]
[368757044,1751349058569,-460.0,0.00020243,2]
[368757045,1751349058579,-460.0,0.00020243,2]
[368757046,1751349058589,-460.0,0.00020243,2]
[368757047,1751349058598,-826.0,0.00020244,2]
[368757048,1751349058608,-163.6,0.00020244,2]
[368757049,1751349058617,-2322.87,0.00020244,2]
[368757050,1751349058627,-460.0,0.00020244,2]
[368757051,1751349058636,-460.0,0.00020244,2]
[368757052,1751349058646,-2448.82,0.00020244,2]
[368757053,1751349058656,-460.0,0.00020244,2]
[368757054,1751349058666,-464.34,0.00020244,2]
[368757055,1751349058676,-460.0,0.00020244,2]
[368757056,1751349058687,-702.81,0.00020244,2]
[368757057,1751349058697,-460.0,0.00020244,2]
[368757058,1751349058706,-151.0,0.00020244,2]
[368757059,1751349058715,-1025.21,0.00020244,2]
[368757060,1751349058726,-151.0,0.00020245,2]
[368757061,1751349058736,-840.85,0.00020245,2]
[368757062,1751349058745,-460.0,0.00020246,2]
[368757063,1751349058755,-151.0,0.00020246,2]
[368757064,1751349058766,-151.0,0.00020246,2]
[368757065,1751349058776,-484.810755,0.00020246,2]
[368757066,1751349058786,-484.810755,0.00020246,2]
[368757067,1751349058797,-1115.32,0.00020246,2]
[368757068,1751349058808,-1061.67,0.00020246,2]
[368757069,1751349058818,-2008.26,0.00020246,2]
[368757070,1751349058829,-151.0,0.00020363,2]
[368757071,1751349058839,-151.0,0.00020363,2]
[368757072,1751349058849,-151.0,0.00020363,2]
[368757073,1751349058858,-151.0,0.00020363,2]
[368757074,1751349058868,-151.0,0.00020363,2]
[368757075,1751349058878,-151.0,0.00020363,2]
[368757076,1751349058888,-151.0,0.00020363,2]
[368757077,1751349058898,-156.298948,0.00020363,2]
[368757078,1751349058907,-152.706343,0.00020363,2]
[368757079,1751349058917,-151.0,0.00020363,2]
[368757080,1751349058927,-151.0,0.00020363,2]
[368757081,1751349058936,-269.495333,0.00020363,2]
[368757082,1751349058945,-269.495333,0.00020363,2]
[368757083,1751349058955,-1028.93950324,0.00020363,2]
[368757084,1751349058966,-151.0,0.00020408,2]
[368757085,1751349058975,-151.0,0.00020408,2]
[368757086,1751349058985,-222.177778,0.00020408,2]
[368757087,1751349058995,-151.0,0.00020408,2]
[368757088,1751349059005,-151.0,0.00020408,2]
[368757089,1751349059019,-185.347942,0.00020408,2]
[368757090,1751349059029,-185.347942,0.00020408,2]
[368757091,1751349059038,-826.0,0.00020408,2]
[368757092,1751349059048,-826.0,0.00020423,2]
[368757093,1751349059058,-2748.06342288,0.00020436,2]
[368757094,1751349059068,-676.574,0.00020456,2]
[368757095,1751349059077,-151.0,0.000205,4]
[368757096,1751349059087,-205.04,0.00020515,2]
[368757097,1751349059097,-1110.87,0.00020515,2]
[368757098,1751349059107,-716.4,0.00020516,2]
[368757099,1751349059117,-1541.28,0.00020516,2]
[368757100,1751349059128,-460.0,0.00020516,2]
[368757101,1751349059222,-512.95,0.00020516,2]
[368757102,1751349059233,-1394.72,0.00020516,2]
[368757103,1751349059243,-1865.57,0.00020516,2]
[368757104,1751349059252,-460.0,0.00020516,2]
[368757105,1751349059262,-692.65,0.00020516,2]
[368757106,1751349059273,-541.78,0.00020517,2]
[368757107,1751349059282,-460.0,0.00020517,2]
[368757108,1751349059291,-460.0,0.00020517,2]
[368757109,1751349059301,-1719.47,0.00020517,2]
[368757110,1751349059310,-353.42,0.00020517,2]
[368757111,1751349059319,-943.57,0.00020517,2]
[368757112,1751349059330,-369.29,0.00020517,2]
[368757113,1751349059340,-501.45,0.00020517,2]
[368757114,1751349059350,-566.11,0.00020517,2]
[368757115,1751349059360,-482.45,0.00020517,2]
[368757116,1751349059369,-1143.86,0.00020517,2]
[368757117,1751349059379,-527.84,0.00020517,2]
[368757118,1751349059388,-241.7,0.00020517,2]
[368757119,1751349059398,-597.27,0.00020517,2]
[368757120,1751349059408,-460.0,0.00020517,2]
[368757121,1751349059417,-460.0,0.00020517,2]
[368757122,1751349059427,-409.56,0.00020517,2]
[368757123,1751349059439,-2322.87,0.00020518,2]
[368757124,1751349059448,-460.0,0.00020518,2]
[368757125,1751349059458,-460.0,0.00020518,2]
[368757126,1751349059467,-2448.82,0.00020518,2]
[368757127,1751349059477,-460.0,0.00020518,2]
[368757128,1751349059486,-460.0,0.00020518,2]
[368757129,1751349059496,-702.81,0.00020518,2]
[368757130,1751349059505,-460.0,0.00020518,2]
[368757131,1751349059515,-1025.21,0.00020518,2]
[368757132,1751349059524,-840.85,0.00020519,2]
[368757133,1751349059534,-151.0,0.0002052,2]
[368757134,1751349059543,-151.0,0.0002052,2]
[368757135,1751349059553,-151.0,0.0002052,2]
[368757136,1751349059562,-460.0,0.0002052,2]
[368757137,1751349059572,-151.0,0.0002052,2]
[368757138,1751349059581,-273.584101,0.0002052,2]
[368757139,1751349059591,-152.376764,0.0002052,2]
[368757140,1751349059600,-152.376764,0.0002052,2]
[368757141,1751349059610,-1115.32,0.0002052,2]
[368757142,1751349059620,-1061.67,0.0002052,2]
[368757143,1751349059629,-2008.26,0.0002052,2]
[368757144,1751349059638,-500.0,0.00020547,14]
[368757145,1751349059648,-1283.058819,0.00020579,4]
[368757146,1751349059657,-1000.0,0.00020633,2]
[368757147,1751349059667,-334.5672607,0.00020633,2]
[368757148,1751349059677,-1003.14841377,0.00020633,2]
[368757149,1751349059687,-159.96972641,0.00020633,2]
[368757150,1751349059696,-1074.88814756,0.00020633,2]
[368757151,1751349059706,-1000.0,0.00020633,2]
[368757152,1751349059715,-580.49726096,0.00020633,2]
[368757153,1751349059725,-1000.0,0.00020633,2]
[368757154,1751349059734,-197.87359497,0.00020633,2]
[368757155,1751349059744,-1000.0,0.00020633,2]
[368757156,1751349059754,-1000.0,0.00020633,2]
[368757157,1751349059763,-1200.0,0.00020633,2]
[368757158,1751349059773,-591.39567584,0.00020633,2]
[368757159,1751349059782,-1000.0,0.00020633,2]
[368757160,1751349059792,-1000.0,0.00020633,2]
[368757161,1751349059801,-1000.0,0.00020633,2]
[368757162,1751349059812,-415.0,0.00020636,2]
[368757163,1751349059822,-1000.0,0.00020667,5]
[368757164,1751349059832,-151.0,0.00020739,2]
[368757165,1751349059841,-151.0,0.00020739,2]
[368757166,1751349059851,-151.0,0.00020739,2]
[368757167,1751349059860,-966.0,0.00020739,2]
[368757168,1751349059870,-2151.0,0.00020739,2]
[368757169,1751349059879,-671.531,0.00020739,2]
[368757170,1751349059889,-2748.06342289,0.0002077,2]
[368757171,1751349059898,-1110.87,0.00020789,2]
[368757172,1751349059908,-716.4,0.0002079,2]
[368757173,1751349059917,-1541.28,0.0002079,2]
[368757174,1751349059927,-460.0,0.0002079,2]
[368757175,1751349059937,-1394.72,0.0002079,2]
[368757176,1751349059946,-1865.57,0.0002079,2]
[368757177,1751349059956,-275.76,0.0002079,2]
[368757178,1751349059965,-692.65,0.0002079,2]
[368757179,1751349059974,-154.332682,0.00020791,2]
[368757180,1751349059984,-151.0,0.00020791,2]
[368757181,1751349059993,-151.0,0.00020791,2]
[368757182,1751349060003,-152.955021,0.00020791,2]
[368757183,1751349060015,-151.0,0.00020791,2]
[368757184,1751349060025,-460.0,0.00020791,2]
[368757185,1751349060034,-460.0,0.00020791,2]
[368757186,1751349060044,-1719.47,0.00020791,2]
[368757187,1751349060055,-943.57,0.00020791,2]
[368757188,1751349060064,-501.45,0.00020791,2]
[368757189,1751349060074,-566.11,0.00020791,2]
[368757190,1751349060086,-1143.86,0.00020791,2]
[368757191,1751349060097,-527.84,0.00020791,2]
[368757192,1751349060107,-597.27,0.00020791,2]
[368757193,1751349060117,-421.04,0.00020791,2]
[368757194,1751349060128,-473.54,0.00020791,2]
[368757195,1751349060137,-2322.87,0.00020792,2]
[368757196,1751349060147,-460.0,0.00020792,2]
[368757197,1751349060157,-460.0,0.00020792,2]
[368757198,1751349060167,-460.0,0.00020792,2]
[368757199,1751349060176,-2448.82,0.00020792,2]
[368757200,1751349060185,-460.0,0.00020792,2]
[368757201,1751349060195,-702.81,0.00020792,2]
[368757202,1751349060204,-460.0,0.00020792,2]
[368757203,1751349060213,-1025.21,0.00020792,2]
[368757204,1751349060223,-840.85,0.00020793,2]
[368757205,1751349060233,-460.0,0.00020794,2]
[368757206,1751349060242,-1115.32,0.00020794,2]
[368757207,1751349060252,-1061.67,0.00020794,2]
[368757208,1751349060261,-2008.26,0.00020794,2]
[368757209,1751349060273,-151.0,0.000208,4]
[368757210,1751349060282,-159.3450821,0.00020877,2]
[368757211,1751349060292,-575.5050994,0.00020877,2]
[368757212,1751349060302,-153.0,0.00020877,2]
[368757213,1751349060312,-159.3450821,0.00020877,2]
[368757214,1751349060322,-575.5050994,0.00020877,2]
[368757215,1751349060332,-364.40809835,0.00020911,2]
[368757216,1751349060341,-18416.0,0.00021,5]
[368757217,1751349060427,-3000.0,0.00021,2]
[368757218,1751349060437,-10000.0,0.00021,5]
[368757219,1751349060448,-160.0,0.00021,7]
[368757220,1751349060458,-12571.40790328,0.00021,7]
[368757221,1751349060467,-213.87551669,0.00021,7]
[368757222,1751349060476,-847.53272281,0.00021,7]
[368757223,1751349060486,-151.0,0.00021,2]
[368757224,1751349060495,-415.0,0.0002101,2]
[368757225,1751349060505,-215.0738,0.00021049,2]
[368757226,1751349060515,-1110.87,0.00021063,2]
[368757227,1751349060525,-716.4,0.00021064,2]
[368757228,1751349060534,-1541.28,0.00021064,2]
[368757229,1751349060543,-539.11,0.00021064,2]
[368757230,1751349060553,-1394.72,0.00021064,2]
[368757231,1751349060563,-1865.57,0.00021064,2]
[368757232,1751349060572,-692.65,0.00021064,2]
[368757233,1751349060583,-460.0,0.00021065,2]
[368757234,1751349060592,-460.0,0.00021065,2]
[368757235,1751349060602,-1719.47,0.00021065,2]
[368757236,1751349060612,-744.410033,0.00021065,2]
[368757237,1751349060622,-744.410033,0.00021065,2]
[368757238,1751349060631,-151.0,0.00021065,2]
[368757239,1751349060641,-174.90838,0.00021065,2]
[368757240,1751349060651,-151.0,0.00021065,2]
[368757241,1751349060661,-174.90838,0.00021065,2]
[368757242,1751349060671,-943.57,0.00021065,2]
[368757243,1751349060680,-501.45,0.00021065,2]
[368757244,1751349060690,-566.11,0.00021065,2]
[368757245,1751349060699,-1143.86,0.00021065,2]
[368757246,1751349060708,-527.84,0.00021065,2]
[368757247,1751349060718,-151.0,0.00021065,2]
[368757248,1751349060727,-597.27,0.00021065,2]
[368757249,1751349060737,-2322.87,0.00021066,2]
[368757250,1751349060746,-460.0,0.00021066,2]
[368757251,1751349060756,-548.73559468,0.00021066,2]
[368757252,1751349060765,-460.0,0.00021066,2]
[368757253,1751349060775,-2448.82,0.00021066,2]
[368757254,1751349060786,-460.0,0.00021066,2]
[368757255,1751349060795,-702.81,0.00021066,2]
[368757256,1751349060804,-460.0,0.00021066,2]
[368757257,1751349060814,-1025.21,0.00021066,2]
[368757258,1751349060824,-840.85,0.00021067,2]
[368757259,1751349060833,-460.0,0.00021068,2]
[368757260,1751349060843,-1115.32,0.00021068,2]
[368757261,1751349060852,-1061.67,0.00021068,2]